bitfinex-derivatives/quotes_SOLF0:USTF0_20250227
["timestamp","ask_amount","ask_price","bid_price","bid_amount"]
[1740639617354,191.44,142.21,142.15,4.9286]
[1740639617662,4.9274,142.19,142.15,4.9286]
[1740639618562,0.04573884,142.18,142.16,0.04920724]
[1740639619562,4.928,142.17,142.16,0.04920724]
[1740639620855,0.04573884,142.18,142.1,12.96]
[1740639621058,4.929,142.14,142.11,8.16249199]
[1740639621254,4.929,142.14,142.12,8.16249199]
[1740639621558,4.929,142.14,142.1,12.96]
[1740639621755,4.9296,142.13,142.1,12.96]
[1740639622060,0.04903209,142.13,142.1,13.00897408]
[1740639622260,0.04903209,142.13,142.1,17.93927408]
[1740639622856,0.04903209,142.13,142.1,13.00897408]
[1740639623054,0.04903209,142.13,142.12,4.9297]
[1740639623966,0.04903209,142.13,142.1,13.00897408]
[1740639624667,0.04903209,142.13,142.11,4.93]
[1740639625969,0.04903209,142.13,142.1,13.00897408]
[1740639626169,0.04903209,142.13,142.12,4.9297]
[1740639626960,4.9277,142.18,142.13,4.9291]
[1740639627165,195.3406,142.21,142.13,4.9291]
[1740639627763,4.9282,142.17,142.13,4.9291]
[1740639628071,0.04425405,142.16,142.14,0.0489177]
[1740639629270,0.04425405,142.16,142.15,4.9287]
[1740639630564,193.4122,142.21,142.14,0.0489177]
[1740639630565,191.44,142.21,142.14,0.0489177]
[1740639630769,11.48,142.26,142.14,0.0489177]
[1740639630966,3.8396,142.27,142.11,216.63231593]
[1740639631160,3.8396,142.27,142.12,8.16731593]
[1740639631361,3.8396,142.27,142.11,1.985]
[1740639631564,1.8686,142.27,142.11,1.985]
[1740639631765,0.05132828,142.2,142.18,0.05193118]
[1740639631970,4.9269,142.21,142.11,1.985]
[1740639632174,0.04816478,142.2,142.18,0.04607039]
[1740639632373,0.04816478,142.2,142.11,3.9591]
[1740639632670,4.9266,142.21,142.15,4.9284]
[1740639632870,0.04927967,142.17,142.16,8.15403346]
[1740639633070,4.9266,142.21,142.16,8.15403346]
[1740639633268,0.04727746,142.18,142.17,8.15403346]
[1740639633471,0.04727746,142.18,142.15,0.04829863]
[1740639633671,0.04727746,142.18,142.16,8.15328447]
[1740639633973,0.04727746,142.18,142.15,0.04829863]
[1740639634165,0.04727746,142.18,142.16,8.15466329]
[1740639634363,0.04727746,142.18,142.15,0.04829863]
[1740639634570,0.04727746,142.18,142.16,8.15220879]
[1740639634766,0.04727746,142.18,142.15,0.04829863]
[1740639634967,7.746e-05,142.18,142.17,4.928]
[1740639635166,7.746e-05,142.18,142.17,13.07997889]
[1740639639477,7.746e-05,142.18,142.17,34.17997889]
[1740639640278,7.746e-05,142.18,142.17,45.65997889]
[1740639640474,5.5896,142.33,142.23,4.9256]
[1740639640981,4.9239,142.29,142.23,4.9256]
[1740639641577,0.0520409,142.27,142.25,0.04466157]
[1740639641882,0.0520409,142.27,142.24,4.9255]
[1740639642079,0.0520409,142.27,142.25,0.04898973]
[1740639642980,0.0520409,142.27,142.26,4.9248]
[1740639643480,11.48,142.35,142.26,4.9248]
[1740639643481,228.72202773,142.41,142.32,4.9226]
[1740639643675,79.22866126,142.38,142.26,11.88876119]
[1740639643876,79.22866126,142.38,142.27,8.12136119]
[1740639644076,79.22866126,142.38,142.33,4.9224]
[1740639644682,4.97112141,142.36,142.34,0.05233836]
[1740639644882,40.79170673,142.37,142.23,8.12136119]
[1740639645080,40.79170673,142.37,142.24,8.12136119]
[1740639645279,40.79170673,142.37,142.22,8.12136119]
[1740639645680,40.79170673,142.37,142.22,20.05136119]
[1740639645877,29.31170673,142.37,142.23,8.12136119]
[1740639646082,0.04877475,142.31,142.28,0.05220122]
[1740639646284,5.7038,142.38,142.25,13.87176119]
[1740639646475,5.7038,142.38,142.31,4.9229]
[1740639646680,0.046674,142.33,142.25,5.7504]
[1740639646883,5.7038,142.38,142.32,0.04502446]
[1740639647080,4.9211,142.37,142.32,0.04502446]
[1740639647280,0.04594653,142.36,142.3,4.9232]
[1740639647583,0.04594653,142.36,142.33,0.05186842]
[1740639651286,4.96734653,142.36,142.33,0.05186842]
[1740639651486,0.04594653,142.36,142.33,0.05186842]
[1740639652787,4.922,142.35,142.33,0.05186842]
[1740639653281,0.04594653,142.36,142.33,0.05186842]
[1740639653587,4.96744653,142.36,142.33,0.05186842]
[1740639654581,0.04594653,142.36,142.33,0.05186842]
[1740639655389,0.04594653,142.36,142.33,4.97416842]
[1740639656182,0.04594653,142.36,142.33,0.05186842]
[1740639656587,0.04594653,142.36,142.3,10.91]
[1740639657382,4.9231,142.31,142.3,10.91]
[1740639657577,4.9231,142.31,142.29,3.7667]
[1740639657783,0.04844623,142.32,142.28,32.29]
[1740639657977,4.9238,142.29,142.28,19.6064]
[1740639658483,26.0038,142.29,142.28,19.6064]
[1740639658685,21.08,142.29,142.18,4.9273]
[1740639658985,21.08,142.29,142.15,5.7677]
[1740639659185,191.2,142.31,142.15,5.7677]
[1740639659387,4.9248,142.27,142.15,5.7677]
[1740639659581,11.46,142.26,142.15,5.7677]
[1740639659778,11.46,142.26,142.15,8.7505]
[1740639659981,32.56,142.26,142.14,35.11101954]
[1740639660187,0.05107023,142.25,142.23,0.04782783]
[1740639660587,21.15107023,142.25,142.1,5.8199]
[1740639660778,192.0,142.24,142.15,15.24]
[1740639661689,4.9259,142.23,142.15,15.24]
[1740639661890,0.04662624,142.21,142.18,0.04645736]
[1740639663185,21.14662624,142.21,142.15,15.24]
[1740639663386,0.04662624,142.21,142.15,25.3]
[1740639664193,4.9278,142.18,142.15,25.3]
[1740639664393,11.48,142.17,142.15,34.24]
[1740639664588,11.48,142.17,142.15,34.29350321]
[1740639665085,32.58,142.17,142.15,34.29350321]
[1740639665288,11.48,142.17,142.15,34.29350321]
[1740639665994,32.58,142.17,142.15,34.29350321]
[1740639666990,4.9283,142.16,142.15,34.29350321]
[1740639667394,26.0283,142.16,142.15,34.29350321]
[1740639669830,26.0283,142.16,142.15,10.32788752]
[1740639670032,192.0,142.15,142.13,26.16]
[1740639670540,192.0,142.14,142.13,26.16]
[1740639670736,4.929,142.14,142.13,26.16]
[1740639671034,26.029,142.14,142.13,26.16]
[1740639671334,4.9294,142.13,142.12,0.04567294]
[1740639671937,26.0294,142.13,142.12,0.04567294]
[1740639673130,21.1,142.13,142.12,0.04567294]
[1740639674545,26.0294,142.13,142.12,0.04567294]
[1740639676143,27.29462889,142.13,142.12,0.04567294]
[1740639676839,4.9301,142.11,142.03,44.1727]
[1740639677046,4.9301,142.11,142.03,39.24]
[1740639677047,12.74520246,142.1,142.03,39.24]
[1740639677244,1.26520246,142.09,142.03,39.24]
[1740639678150,0.05362521,142.07,142.05,0.05250655]
[1740639678352,191.5,142.06,142.05,0.05250655]
[1740639679248,191.5,142.06,142.05,4.98460655]
[1740639680055,191.5,142.06,142.05,0.05250655]
[1740639683245,191.5,142.06,142.05,26.21279806]
[1740639683753,191.5,142.06,142.05,4.98460655]
[1740639685352,0.05362521,142.07,142.06,4.9318]
[1740639685761,0.05362521,142.07,142.05,0.05250655]
[1740639685958,0.05362521,142.07,142.05,26.21279806]
[1740639686157,192.0,142.13,142.05,0.05250655]
[1740639686648,191.56,142.14,142.05,0.05250655]
[1740639687048,191.56,142.14,142.03,39.24]
[1740639687238,191.56,142.14,142.09,4.9305]
[1740639687438,0.05124919,142.1,142.09,4.9305]
[1740639687854,191.56,142.14,142.03,39.24]
[1740639688045,0.05080732,142.11,142.08,0.04678709]
[1740639688555,0.05080732,142.11,142.08,4.97758709]
[1740639688946,0.05080732,142.11,142.08,31.1378786]
[1740639689141,0.05080732,142.11,142.08,4.97758709]
[1740639689346,0.05080732,142.11,142.08,0.04678709]
[1740639689543,0.05080732,142.11,142.08,26.2070786]
[1740639690043,0.05080732,142.11,142.08,0.04678709]
[1740639693446,191.56,142.14,142.08,0.04678709]
[1740639693643,191.56,142.14,142.09,4.9304]
[1740639693849,191.56,142.14,142.08,0.04678709]
[1740639694744,0.04972159,142.12,142.08,26.2070786]
[1740639694940,0.04972159,142.12,142.08,0.04678709]
[1740639695550,0.04972159,142.12,142.09,4.9307]
[1740639696245,0.04972159,142.12,142.08,0.04678709]
[1740639696747,0.04972159,142.12,142.08,26.2070786]
[1740639697141,4.9301,142.11,142.08,26.2070786]
[1740639698218,4.9304,142.1,142.08,26.2070786]
[1740639699627,4.9307,142.09,142.08,0.04678709]
[1740639700025,16.4107,142.09,142.08,0.04678709]
[1740639701527,16.4107,142.09,142.08,8.709e-05]
[1740639703130,0.04972159,142.12,142.08,8.709e-05]
[1740639703628,0.04972159,142.12,142.09,4.9307]
[1740639703829,0.04972159,142.12,142.08,1.83878709]
[1740639704029,0.04972159,142.12,142.09,8.12964738]
[1740639704232,0.04972159,142.12,142.1,4.9301]
[1740639704527,191.56,142.14,142.1,4.9301]
[1740639704719,191.56,142.14,142.08,1.83878709]
[1740639704924,221.31170673,142.19,142.09,8.15893411]
[1740639705229,29.31170673,142.19,142.1,8.15893411]
[1740639705424,0.04963252,142.16,142.13,0.04639241]
[1740639706329,4.9284,142.16,142.13,0.04639241]
[1740639706627,4.9284,142.16,142.13,26.20668392]
[1740639706825,203.02,142.22,142.13,26.20668392]
[1740639707025,203.02,142.22,142.12,1.8929]
[1740639707026,1.26428489,142.21,142.12,1.8929]
[1740639707324,1.26428489,142.21,142.12,28.05319151]
[1740639707531,4.9283,142.16,142.15,0.05022642]
[1740639707826,0.05009906,142.18,142.1,10.24]
[1740639708127,22.41466031,142.2,142.1,10.24]
[1740639708323,1.26466031,142.19,142.1,10.24]
[1740639708723,4.9298,142.12,142.1,10.24]
[1740639709127,4.9782003,142.12,142.1,10.29358737]
[1740639709930,0.0484003,142.12,142.1,10.29358737]
[1740639711728,11.48,142.16,142.1,10.29358737]
[1740639712030,16.4086,142.16,142.11,15.12371769]
[1740639712230,29.31170673,142.23,142.11,3.8933]
[1740639712427,1.26426709,142.22,142.11,3.8933]
[1740639712628,40.79170673,142.24,142.11,3.8933]
[1740639712832,1.26426633,142.23,142.14,4.929]
[1740639713028,0.05320536,142.18,142.15,0.05167067]
[1740639713932,0.05320536,142.18,142.15,26.21196218]
[1740639715424,0.05320536,142.18,142.15,0.05167067]
[1740639715929,4.98090536,142.18,142.15,0.05167067]
[1740639718034,0.05320536,142.18,142.16,4.9281]
[1740639718327,191.5,142.25,142.15,0.05167067]
[1740639718528,202.98,142.25,142.15,0.05167067]
[1740639718731,4.926,142.23,142.19,4.927]
[1740639719542,0.0480619,142.22,142.2,0.04609156]
[1740639720230,191.5,142.25,142.2,0.04609156]
[1740639720430,29.31170673,142.26,142.2,0.04609156]
[1740639721138,26.26050673,142.26,142.2,0.04609156]
[1740639721530,0.04497151,142.24,142.23,4.9259]
[1740639721829,4.9241,142.29,142.2,7.83]
[1740639722035,4.9241,142.29,142.2,33.99029151]
[1740639722636,4.9236,142.3,142.2,33.99029151]
[1740639722835,0.05115609,142.26,142.23,0.0529837]
[1740639723033,4.9236,142.3,142.23,0.0529837]
[1740639723538,4.9239,142.29,142.23,0.0529837]
[1740639723838,4.9239,142.29,142.23,29.73327521]
[1740639724234,0.04611779,142.27,142.23,29.73327521]
[1740639725939,4.9236,142.3,142.23,3.5729837]
[1740639726234,191.44,142.33,142.23,24.71057372]
[1740639726640,1.26338195,142.32,142.23,24.71057372]
[1740639726836,1.26338195,142.32,142.23,3.52]
[1740639727038,1.26338195,142.32,142.23,4.22]
[1740639727237,0.04737362,142.29,142.26,0.04440946]
[1740639727541,0.04737362,142.29,142.23,4.22]
[1740639728536,0.04737362,142.29,142.23,25.41057372]
[1740639728742,0.04737362,142.29,142.25,0.04690931]
[1740639729141,0.04737362,142.29,142.23,4.22]
[1740639730342,4.9255,142.24,142.23,4.22]
[1740639730542,4.9255,142.24,142.23,15.53]
[1740639732241,4.9255,142.24,142.23,9.4292]
[1740639733242,4.9255,142.24,142.22,0.05220444]
[1740639733243,4.9259,142.23,142.22,0.05220444]
[1740639733546,0.05364799,142.25,142.2,22.33]
[1740639734548,4.9266,142.21,142.2,22.33]
[1740639734951,4.9266,142.21,142.2,6.5983]
[1740639735148,217.3666,142.21,142.2,6.3389]
[1740639735349,4.9269,142.2,142.19,0.04803945]
[1740639735748,26.0269,142.2,142.19,0.04803945]
[1740639735950,4.9269,142.2,142.19,0.04803945]
[1740639736351,26.0269,142.2,142.19,0.04803945]
[1740639737151,4.9269,142.2,142.19,0.04803945]
[1740639737553,26.0269,142.2,142.19,0.04803945]
[1740639738650,27.29130071,142.2,142.19,3.945e-05]
[1740639738851,48.44130071,142.2,142.19,3.945e-05]
[1740639739152,4.928,142.17,142.1,23.0]
[1740639739347,17.67240071,142.17,142.1,23.0]
[1740639739553,37.508,142.17,142.1,23.0]
[1740639739957,38.772649,142.17,142.1,23.0]
[1740639740256,38.772649,142.17,142.15,0.04694589]
[1740639740750,17.672649,142.17,142.15,0.04694589]
[1740639740946,16.408,142.17,142.15,0.04694589]
[1740639742655,11.52473121,142.18,142.15,0.04694589]
[1740639742859,0.04473121,142.18,142.15,0.04694589]
[1740639743156,0.04473121,142.18,142.16,32.36061317]
[1740639743656,4.928,142.17,142.16,11.17]
[1740639744849,26.028,142.17,142.16,0.0344]
[1740639745050,4.9283,142.16,142.15,4.589e-05]
[1740639745360,6.1929662,142.16,142.15,4.589e-05]
[1740639745858,27.2929662,142.16,142.15,4.589e-05]
[1740639746150,6.1929662,142.16,142.15,4.589e-05]
[1740639747155,27.2929662,142.16,142.15,4.589e-05]
[1740639748557,48.4429662,142.16,142.15,4.589e-05]
[1740639748750,27.3429662,142.16,142.15,4.589e-05]
[1740639748951,27.34321471,142.16,142.15,4.589e-05]
[1740639749352,48.44321471,142.16,142.15,4.589e-05]
[1740639752963,55.79442143,142.16,142.15,4.589e-05]
[1740639754155,55.79468275,142.16,142.15,4.589e-05]
[1740639755469,48.44347603,142.16,142.15,4.589e-05]
[1740639755772,21.15,142.1,142.08,2.7936]
[1740639755970,225.41532808,142.09,141.95,1.9415]
[1740639756172,33.89532808,142.08,141.96,2.0213]
[1740639756368,1.26532808,142.07,141.96,2.0213]
[1740639756570,4.932,142.06,141.96,28.14691317]
[1740639756869,0.04863639,142.02,142.0,0.04565962]
[1740639757073,11.48,142.01,142.0,0.04565962]
[1740639760572,0.04642087,142.02,142.0,0.04565962]
[1740639761366,212.67,142.09,142.0,0.04565962]
[1740639761367,191.52,142.09,142.0,0.04565962]
[1740639761574,11.48,142.07,142.0,0.04565962]
[1740639761779,11.48,142.07,142.01,4.9333]
[1740639762076,11.48,142.07,141.92,11.9025]
[1740639762676,0.04564279,142.01,141.98,0.04747724]
[1740639762875,11.48,142.07,141.92,11.9025]
[1740639763172,11.48,142.07,142.02,4.9331]
[1740639763371,11.48,142.07,142.03,1.8933]
[1740639763876,11.48,142.07,142.03,23.08391317]
[1740639764077,0.05351385,142.06,142.04,0.04967111]
[1740639764271,192.0,142.12,142.04,0.04967111]
[1740639764470,204.33565818,142.11,142.06,4.9317]
[1740639764671,1.25565818,142.1,142.06,4.9317]
[1740639765277,11.48,142.09,142.06,4.9317]
[1740639765577,11.53167131,142.09,142.07,0.04915379]
[1740639766468,2.38557131,142.09,142.07,4.98025379]
[1740639766675,2.38557131,142.09,142.07,21.23976696]
[1740639767073,2.38557131,142.09,142.07,0.04915379]
[1740639767680,191.6,142.11,142.07,0.04915379]
[1740639768774,0.05122708,142.1,142.07,0.04915379]
[1740639769081,191.6,142.11,142.07,0.04915379]
[1740639769879,191.6,142.11,142.07,21.23976696]
[1740639770178,0.04910516,142.1,142.07,21.23976696]
[1740639770970,0.04910516,142.1,142.07,0.04915379]
[1740639772883,6.23506698,142.1,142.07,0.04915379]
[1740639773083,4.97960516,142.1,142.07,0.04915379]
[1740639773979,0.04910516,142.1,142.07,0.04915379]
[1740639774579,0.04910516,142.1,142.07,21.23976696]
[1740639774983,4.9309,142.09,142.07,0.04915379]
[1740639776587,4.9311,142.08,142.07,0.04915379]
[1740639776786,6.18670054,142.08,142.07,0.04915379]
[1740639777685,213.15,142.07,141.95,3.9166]
[1740639777878,204.73560054,142.06,141.96,8.18832401]
[1740639778084,1.25560054,142.05,141.95,25.10721317]
[1740639778479,4.9332,142.02,141.95,25.10721317]
[1740639778681,4.9332,142.02,141.97,0.05065568]
[1740639778682,0.04428167,142.0,141.97,0.05065568]
[1740639779591,0.04428167,142.0,141.97,21.24126885]
[1740639780494,11.48,141.99,141.97,21.24126885]
[1740639781691,11.48,141.99,141.97,0.05065568]
[1740639782387,11.48,141.99,141.97,21.24126885]
[1740639782583,16.4143,141.99,141.97,21.24126885]
[1740639782890,11.48,141.99,141.97,21.24126885]
[1740639783791,11.48,141.99,141.97,0.05065568]
[1740639783983,0.04428167,142.0,141.97,0.05065568]
[1740639784188,1.25619613,142.08,141.98,8.20189346]
[1740639784392,1.25619613,142.08,141.99,1.9938]
[1740639784690,4.9325,142.04,141.99,1.9938]
[1740639784890,110.2872919,142.1,141.99,1.9938]
[1740639785083,47.53626164,142.07,141.99,23.1401315]
[1740639785279,0.04946492,142.05,142.03,0.05239312]
[1740639785482,0.04946492,142.05,142.03,21.19872462]
[1740639785689,0.04946492,142.05,142.04,1.9399]
[1740639785886,47.53626164,142.07,142.04,1.9399]
[1740639786091,44.48196164,142.07,142.04,3.7869]
[1740639786894,4.9321,142.06,142.04,3.7869]
[1740639787498,0.03652086,142.07,142.04,3.7869]
[1740639787697,4.9321,142.05,142.04,24.9332315]
[1740639787897,4.9321,142.05,142.04,3.7869]
[1740639788586,4.9321,142.05,142.04,24.9332315]
[1740639791497,4.9321,142.05,142.04,21.1463315]
[1740639791697,4.9325,142.04,142.03,0.05239312]
[1740639792195,4.9325,142.04,142.03,9.312e-05]
[1740639792696,4.9335,142.01,142.0,9.312e-05]
[1740639793200,4.9339,142.0,141.99,9.312e-05]
[1740639793393,6.19022093,142.0,141.99,9.312e-05]
[1740639795403,4.9339,142.0,141.99,9.312e-05]
[1740639796103,0.04830303,142.01,141.99,9.312e-05]
[1740639796497,0.04830303,142.01,141.99,21.14642462]
[1740639796695,0.04830303,142.01,141.99,9.312e-05]
[1740639797506,4.9339,142.0,141.99,9.312e-05]
[1740639798806,6.19022985,142.0,141.99,9.312e-05]
[1740639799005,214.40632985,142.0,141.9,1.8993]
[1740639799207,4.9363,141.93,141.92,31.1063315]
[1740639799409,16.4163,141.93,141.92,9.96]
[1740639799712,208.0763,141.93,141.92,9.96]
[1740639800411,209.33326443,141.93,141.92,9.96]
[1740639800612,203.14,141.93,141.92,9.96]
[1740639801211,4.9366,141.92,141.91,1.395e-05]
[1740639801410,6.19357908,141.92,141.91,1.395e-05]
[1740639802207,219.37374478,141.92,141.91,1.395e-05]
[1740639802412,218.1166,141.92,141.91,1.395e-05]
[1740639803113,196.9366,141.92,141.91,1.395e-05]
[1740639804111,214.39747551,141.92,141.81,23.57]
[1740639804313,3.27977551,141.91,141.81,23.57]
[1740639804509,1.25747551,141.9,141.81,23.57]
[1740639804712,3.28527551,141.9,141.81,23.57]
[1740639805018,1.25747551,141.89,141.81,23.57]
[1740639805313,4.9401,141.82,141.81,20.52798171]
[1740639805518,213.18,141.81,141.71,5.9327]
[1740639805712,191.76,141.8,141.71,27.0790315]
[1740639806014,4.9412,141.79,141.71,5.9327]
[1740639806210,193.7867,141.8,141.71,5.9327]
[1740639806514,0.04819216,141.77,141.74,0.04964901]
[1740639808218,170.6136685,141.8,141.76,4.9422]
[1740639808514,167.5681685,141.8,141.74,0.04964901]
[1740639808711,167.5681685,141.8,141.75,4.9424]
[1740639808920,167.5681685,141.8,141.74,0.04964901]
[1740639809215,0.04484565,141.78,141.77,4.9418]
[1740639809416,158.47561415,141.8,141.77,4.9418]
[1740639809914,151.81531415,141.8,141.71,1.9254]
[1740639810117,1.8695,141.9,141.71,218.0854]
[1740639810118,191.84,141.88,141.71,218.0854]
[1740639810306,191.84,141.88,141.71,196.9254]
[1740639810507,0.05138989,141.81,141.78,0.04638933]
[1740639810715,191.84,141.88,141.71,218.0854]
[1740639810916,191.84,141.88,141.71,196.9254]
[1740639811512,191.84,141.88,141.83,4.9398]
[1740639811909,191.84,141.88,141.71,196.9254]
[1740639811910,0.0488351,141.87,141.84,0.04982605]
[1740639812113,0.0488351,141.87,141.78,4.9413]
[1740639812313,0.0476179,141.87,141.84,0.04760259]
[1740639812513,191.84,141.88,141.75,11.5]
[1740639812709,0.0527451,141.87,141.84,0.04957904]
[1740639812919,196.7782,141.88,141.75,206.5]
[1740639813117,0.04855777,141.87,141.84,0.05088985]
[1740639813418,0.04609839,141.87,141.84,0.05131795]
[1740639814122,4.9391,141.85,141.84,0.05131795]
[1740639815825,0.04609839,141.87,141.84,0.05131795]
[1740639816022,4.9388,141.86,141.84,0.05131795]
[1740639816221,0.04609839,141.87,141.84,0.05131795]
[1740639819231,4.9391,141.85,141.84,0.05131795]
[1740639826024,0.04609839,141.87,141.76,1.9611]
[1740639826229,3.8251,141.86,141.76,1.9611]
[1740639826523,1.2575673,141.85,141.73,1.6835]
[1740639826931,4.9418,141.78,141.73,1.6835]
[1740639827129,0.05387008,141.8,141.78,0.0494236]
[1740639827323,11.5,141.81,141.73,1.6835]
[1740639827529,4.9421,141.77,141.73,1.6835]
[1740639827729,4.9421,141.77,141.76,0.05305199]
[1740639830428,4.9421,141.77,141.71,1.8612]
[1740639830429,4.9435,141.73,141.7,10.43]
[1740639830830,11.5,141.74,141.7,10.43]
[1740639831237,4.944,141.71,141.7,10.43]
[1740639831633,0.04986419,141.72,141.7,10.43]
[1740639832532,4.99346419,141.72,141.7,10.43]
[1740639833034,4.944,141.71,141.7,10.43]
[1740639834235,4.944,141.71,141.7,1.29]
[1740639835035,0.04986419,141.72,141.7,1.29]
[1740639836237,4.944,141.71,141.7,1.29]
[1740639836639,0.04986419,141.72,141.7,1.29]
[1740639836842,4.944,141.71,141.69,0.05377542]
[1740639837238,0.04986419,141.72,141.69,0.05377542]
[1740639838042,4.9443,141.7,141.69,0.05377542]
[1740639839241,4.9443,141.7,141.69,7.542e-05]
[1740639840147,6.20341575,141.7,141.69,7.542e-05]
[1740639840840,4.9443,141.7,141.69,7.542e-05]
[1740639842343,6.20343437,141.7,141.69,7.542e-05]
[1740639842646,4.9443,141.7,141.69,7.542e-05]
[1740639843344,6.20341717,141.7,141.69,7.542e-05]
[1740639843842,1.25911717,141.7,141.69,7.542e-05]
[1740639844042,0.04986419,141.72,141.69,21.18007542]
[1740639844243,0.04986419,141.72,141.69,7.542e-05]
[1740639844437,4.9428,141.75,141.69,7.542e-05]
[1740639844746,9.73773871,141.78,141.69,7.542e-05]
[1740639845042,4.9443,141.7,141.69,7.542e-05]
[1740639845239,16.4443,141.7,141.69,7.542e-05]
[1740639845845,38.87367813,141.7,141.69,7.542e-05]
[1740639846438,17.69367813,141.7,141.69,7.542e-05]
[1740639847340,60.05367813,141.7,141.69,7.542e-05]
[1740639848344,17.69367813,141.7,141.69,7.542e-05]
[1740639850049,6.19367813,141.7,141.69,7.542e-05]
[1740639850247,17.71367813,141.7,141.69,7.542e-05]
[1740639850751,16.4643,141.7,141.69,7.542e-05]
[1740639850946,4.9443,141.7,141.69,7.542e-05]
[1740639851149,11.57177609,141.71,141.69,7.542e-05]
[1740639852248,4.9443,141.7,141.69,7.542e-05]
[1740639853251,11.98314807,141.7,141.69,7.542e-05]
[1740639855044,54.34314807,141.7,141.69,7.542e-05]
[1740639855845,33.16314807,141.7,141.69,7.542e-05]
[1740639856254,11.98314807,141.7,141.69,7.542e-05]
[1740639857951,33.16326563,141.7,141.69,7.542e-05]
[1740639858345,33.16327445,141.7,141.69,7.542e-05]
[1740639859252,54.34327445,141.7,141.69,7.542e-05]
[1740639860750,61.71902068,141.7,141.69,7.542e-05]
[1740639861349,60.46944623,141.7,141.69,7.542e-05]
[1740639861558,61.71925714,141.7,141.69,7.542e-05]
[1740639862460,73.23925714,141.7,141.69,7.542e-05]
[1740639863061,4.9468,141.63,141.62,7.542e-05]
[1740639863251,208.6268,141.63,141.62,7.542e-05]
[1740639863759,209.87684246,141.63,141.62,7.542e-05]
[1740639864962,4.9478,141.6,141.53,5.8563]
[1740639865164,204.93004246,141.63,141.53,5.8563]
[1740639865165,203.68,141.63,141.53,5.8563]
[1740639865361,1.25013855,141.62,141.53,5.8563]
[1740639865562,4.9489,141.57,141.53,3.9429]
[1740639865758,11.52,141.56,141.53,3.9429]
[1740639866155,11.5733621,141.56,141.53,3.99369844]
[1740639866366,16.5226621,141.56,141.53,0.05079844]
[1740639868161,11.5733621,141.56,141.53,0.05079844]
[1740639868666,11.52,141.55,141.53,0.05079844]
[1740639871358,0.0533621,141.56,141.53,5.00079844]
[1740639871564,11.52,141.58,141.53,0.05079844]
[1740639871762,11.52,141.58,141.5,8.20390502]
[1740639871968,11.52,141.58,141.48,4.0287]
[1740639872166,11.52,141.58,141.49,8.20347935]
[1740639872362,11.52,141.58,141.48,4.0287]
[1740639872363,11.52,141.58,141.54,4.9497]
[1740639872761,0.04450535,141.57,141.55,0.04450784]
[1740639876369,4.9492,141.56,141.55,0.04450784]
[1740639877471,4.99340535,141.57,141.55,0.04450784]
[1740639878574,0.04450535,141.57,141.55,0.04450784]
[1740639878770,4.9492,141.56,141.55,0.04450784]
[1740639878967,0.04450535,141.57,141.55,0.04450784]
[1740639882685,4.9492,141.56,141.55,0.04450784]
[1740639883586,0.04450535,141.57,141.55,0.04450784]
[1740639883789,192.16,141.63,141.55,0.04450784]
[1740639883988,11.52,141.62,141.55,0.04450784]
[1740639884782,4.9484,141.59,141.55,0.04450784]
[1740639884988,0.0515603,141.6,141.55,0.04450784]
[1740639885288,0.0515603,141.6,141.55,1.92560784]
[1740639886188,4.9492,141.56,141.55,0.04450784]
[1740639891086,0.04848881,141.57,141.55,0.04450784]
[1740639891592,4.9492,141.56,141.55,0.04450784]
[1740639902199,192.34848881,141.57,141.55,0.04450784]
[1740639902400,184.45858881,141.57,141.55,21.24450784]
[1740639902600,38.95095484,141.59,141.55,21.24450784]
[1740639902796,38.95095484,141.59,141.55,0.04450784]
[1740639903002,31.0919097,141.6,141.56,8.27175672]
[1740639903195,27.09007425,141.61,141.57,8.27175672]
[1740639903494,231.37990215,141.62,141.58,8.27175672]
[1740639903695,231.37990215,141.62,141.59,8.27175672]
[1740639903899,0.04685309,141.61,141.6,15.81546039]
[1740639904297,183.85900626,141.61,141.6,7.54370367]
[1740639904900,183.85900626,141.61,141.59,0.05410999]
[1740639905797,0.04685309,141.61,141.59,0.05410999]
[1740639907402,0.04685309,141.61,141.6,8.20034207]
[1740639907597,1.9607,141.77,141.6,224.38034207]
[1740639907797,11.52,141.8,141.61,8.20034207]
[1740639907997,11.52,141.8,141.62,8.20034207]
[1740639908192,4.9422,141.77,141.66,4.9454]
[1740639908393,4.9422,141.77,141.64,8.20034207]